Workbook

Sheet К.П. МАЙ 2020
IH1: СЕГОДНЯ | IQ1: на январь 2020 года | IS1: 1
IH2: =TODAY() -> 2020-05-05 | IQ2: на февраль 2020 года | IS2: 2
IH3: =TEXT(HZ2,"дддд") -> суббота | IQ3: на март 2020 года | IS3: 3
IH4: =WEEKNUM(IH2,2)&"-ая неделя" -> 19-ая неделя | IQ4: на апрель 2020 года | IS4: 4
I5: =IF(OR(#REF!<D3,AND(#REF!<D2,#REF!=D3)),$CN$19,IF(OR(#REF!>D3,AND(#REF!>D2,#REF!=D3)),0,DAY(A2))) ->  | IH5: =IF(OR(#REF!<IC3,AND(#REF!<IC2,#REF!=IC3)),$CN$19,IF(OR(#REF!>IC3,AND(#REF!>IC2,#REF!=IC3)),0,DAY(HZ2))) ->  | IQ5: на май 2020 года | IS5: 5
IG6: время | IQ6: на июнь 2020 года | IS6: 6
HA7: 1 | IB7: количество дней месяца | IE7: =DAY(EOMONTH(A17,0)) -> 31 | IQ7: на июль 2020 года | IS7: 7
HA8: 2 | IB8: месяц | IE8: =MONTH(A17) -> 5 | IG8: 0 | IQ8: на август 2020 года | IS8: 8
IB9: год | IE9: =YEAR(A17) -> 2020 | IG9: 0.02083333333 | IQ9: на сентябрь 2020 года | IS9: 9
GI10: УТВЕРЖДАЮ | IG10: 0.0625 | IQ10: на октябрь 2020 года | IS10: 10
IB11: 0бед | IE11: 0.04166666667 | IG11: 0.4166666667 | IQ11: на ноябрь 2020 года | IS11: 11
GI12: _______________С. А. Сорокина | IG12: 0.4583333333 | IQ12: на декабрь 2020 года | IS12: 12
GI13: « 10 » февраля 2020г. | GT13: апреля | IG13: 0.125
IG14: 0.1458333333 | IQ14: Слезинский В.Е., управляющий участка | IW14: 1
A15: ГРАФИК | IG15: 0.1666666667 | IQ15: Медведев А.П., слесарь-ремонтник | IW15: 0.5
A16: УЧЕТА ИСПОЛЬЗОВАНИЯ РАБОЧЕГО ВРЕМЕНИ ОБСЛУЖИВАЮЩЕГО ПЕРСОНАЛА | IG16: 0.1875 | IQ16: Береговой Г.П., электрик | IW16: 0.25
A17: 2020-05-01 | IG17: 0.2083333333 | IQ17: Воротынцева В.Н., кассир билетный
IG18: 0.2291666667 | IQ18: Окорочкова О.Т., кассир билетный
A19: № п/п | F19: Фамилия Инициалы | X19: Ставка | AC19: 1 | AI19: 2 | AO19: 3 | AU19: 4 | BA19: 5 | BG19: 6 | BM19: 7 | BS19: 8 | BY19: 9 | CE19: 10 | CK19: 11 | CQ19: 12 | CW19: 13 | DC19: 14 | DI19: 15 | DO19: 16 | DU19: 17 | EA19: 18 | EG19: 19 | EM19: 20 | ES19: 21 | EY19: 22 | FE19: 23 | FK19: 24 | FQ19: 25 | FW19: 26 | GC19: 27 | GI19: 28 | GO19: =IF(29<=$IE$7,29,"-") -> 29 | GU19: =IF(30<=$IE$7,30,"-") -> 30 | HA19: =IF(31<=$IE$7,31,"-") -> 31 | HG19: ВСЕГО | IG19: 0.25 | IQ19: Пермякова Т.М., контролёр-посадчик аттракциона
HG20: дней | HY20: часов | IG20: 0.2708333333 | IQ20: Алексеева Р.И., котролёр-посадчик аттракциона
A21: 1 | F21: Слезинский В.Е управляющий участка | X21: 1 | AC21: В | AI21: 0.375 | AO21: 0.375 | AU21: 0.375 | BA21: 0.4166666667 | BG21: В | BM21: 0.375 | BS21: 0.375 | BY21: В | CE21: 0.375 | CK21: 0.375 | CQ21: 0.4166666667 | CW21: В | DC21: 0.375 | DI21: 0.375 | DO21: 0.375 | DU21: 0.375 | EA21: 0.375 | EG21: 0.4166666667 | EM21: В | ES21: 0.375 | EY21: 0.375 | FE21: 0.375 | FK21: 0.375 | FQ21: 0.375 | FW21: 0.4166666667 | GC21: В | GI21: 0.375 | GO21: 0.375 | GU21: 0.375 | HA21: 0.375 | HG21: =COUNT(AC21:HF21) -> 25 | HY21: =SUM(IFERROR(AC22:HF22-AC21:HF21-AC23:HF23,0)) -> 5.625 | IG21: 0.04166666667 | IQ21: Перминов К.И., дежурный зала
AC22: В | AI22: 0.8333333333 | AO22: 0.8333333333 | AU22: 0.8333333333 | BA22: 0.625 | BG22: В | BM22: 0.8333333333 | BS22: 0.8333333333 | BY22: В | CE22: 0.8333333333 | CK22: 0.8333333333 | CQ22: 0.625 | CW22: В | DC22: 0.8333333333 | DI22: 0.8333333333 | DO22: 0.8333333333 | DU22: 0.8333333333 | EA22: 0.8333333333 | EG22: 0.625 | EM22: В | ES22: 0.8333333333 | EY22: 0.8333333333 | FE22: 0.8333333333 | FK22: 0.8333333333 | FQ22: 0.8333333333 | FW22: 0.625 | GC22: В | GI22: 0.8333333333 | GO22: 0.8333333333 | GU22: 0.8333333333 | HA22: 0.8333333333 | IQ22: Перминов К.И., кассир
X23: обед | AI23: 06:00:00 | AO23: 06:00:00 | AU23: 06:00:00 | BA23: 01:00:00 | BM23: 06:00:00 | BS23: 06:00:00 | CE23: 06:00:00 | CK23: 06:00:00 | CQ23: 01:00:00 | DC23: 05:00:00 | DI23: 05:00:00 | DO23: 05:00:00 | DU23: 05:00:00 | EA23: 05:00:00 | EG23: 01:00:00 | ES23: 05:00:00 | EY23: 05:00:00 | FE23: 05:00:00 | FK23: 05:00:00 | FQ23: 05:00:00 | FW23: 01:00:00 | GI23: 05:00:00 | GO23: 05:00:00 | GU23: 05:00:00 | HA23: 05:00:00 | IQ23: Бутелин Ю.Н., сторож
IQ24: Бутелин Ю.Н., контролёр-посадчик
X25: пр | IQ25: Медведев А.П., сторож
A27: 2 | F27: Медведев А.П., слесарь-ремонтник | X27: 1 | AC27: В | AI27: 0.375 | AO27: 0.375 | AU27: В | BA27: В | BG27: 0.375 | BM27: 0.375 | BS27: 0.375 | BY27: В | CE27: 0.375 | CK27: В | CQ27: В | CW27: В | DC27: 0.375 | DI27: 0.375 | DO27: 0.375 | DU27: 0.375 | EA27: В | EG27: В | EM27: 0.375 | ES27: 0.375 | EY27: 0.375 | FE27: 0.375 | FK27: 0.375 | FQ27: В | FW27: В | GC27: 0.375 | GI27: 0.375 | GO27: 0.375 | GU27: 0.375 | HA27: 0.375 | HG27: =COUNT(AC27:HF27) -> 20 | HY27: =SUM(IFERROR(AC28:HF28-AC27:HF27-AC29:HF29,0)) -> 5.625
AC28: В | AI28: 0.7916666667 | AO28: 0.7916666667 | AU28: В | BA28: В | BG28: 0.7916666667 | BM28: 0.7916666667 | BS28: 0.7916666667 | BY28: В | CE28: 0.7916666667 | CK28: В | CQ28: В | CW28: В | DC28: 0.7916666667 | DI28: 0.7916666667 | DO28: 0.7916666667 | DU28: 0.7916666667 | EA28: В | EG28: В | EM28: 0.7916666667 | ES28: 0.7916666667 | EY28: 0.7916666667 | FE28: 0.7916666667 | FK28: 0.7916666667 | FQ28: В | FW28: В | GC28: 0.7916666667 | GI28: 0.7916666667 | GO28: 0.7916666667 | GU28: 0.7916666667 | HA28: 0.7916666667
X29: обед | AI29: 03:00:00 | AO29: 03:00:00 | BG29: 04:00:00 | BM29: 04:00:00 | BS29: 04:00:00 | CE29: 03:00:00 | CW29: 04:00:00 | DC29: 04:00:00 | DI29: 04:00:00 | DO29: 03:00:00 | DU29: 03:00:00 | EM29: 03:00:00 | ES29: 03:00:00 | EY29: 03:00:00 | FE29: 03:00:00 | FK29: 03:00:00 | GC29: 03:00:00 | GI29: 03:00:00 | GO29: 03:00:00 | GU29: 03:00:00 | HA29: 03:00:00
X31: пр
A33: 3 | F33: Береговой Г.П., электрик | X33: 1 | AC33: В | AI33: В | AO33: В | AU33: В | BA33: В | BG33: 0.375 | BM33: 0.375 | BS33: 0.375 | BY33: В | CE33: В | CK33: В | CQ33: 0.375 | CW33: 0.375 | DC33: 0.375 | DI33: 0.375 | DO33: В | DU33: В | EA33: 0.375 | EG33: 0.375 | EM33: 0.375 | ES33: 0.375 | EY33: 0.375 | FE33: В | FK33: В | FQ33: 0.375 | FW33: 0.375 | GC33: 0.375 | GI33: 0.375 | GO33: 0.375 | GU33: В | HA33: В | HG33: =COUNT(AC33:HF33) -> 17 | HY33: =SUM(IFERROR(AC34:HF34-AC33:HF33-AC35:HF35,0)) -> 5.625
AC34: В | AI34: В | AO34: В | AU34: В | BA34: В | BG34: 0.75 | BM34: 0.75 | BS34: 0.7083333333 | BY34: В | CE34: В | CK34: В | CQ34: 0.75 | CW34: 0.75 | DC34: 0.75 | DI34: 0.75 | DO34: В | DU34: В | EA34: 0.75 | EG34: 0.75 | EM34: 0.75 | ES34: 0.75 | EY34: 0.75 | FE34: В | FK34: В | FQ34: 0.75 | FW34: 0.75 | GC34: 0.75 | GI34: 0.75 | GO34: 0.75 | GU34: В | HA34: В
X35: обед | BG35: 01:00:00 | BM35: 01:00:00 | BS35: 01:00:00 | CQ35: 01:00:00 | CW35: 01:00:00 | DC35: 01:00:00 | DI35: 01:00:00 | EA35: 01:00:00 | EG35: 01:00:00 | EM35: 01:00:00 | ES35: 01:00:00 | EY35: 01:00:00 | FQ35: 01:00:00 | FW35: 01:00:00 | GC35: 01:00:00 | GI35: 01:00:00 | GO35: 01:00:00 | IG35: 0.3125
IG36: 0.375
X37: пр | IG37: 0.4895833333
IG38: 0.5416666667
A39: 4 | F39: Воротынцева В.Н., кассир билетный | X39: 1 | AO39: 0.375 | BA39: 0.375 | BM39: 0.375 | CK39: 0.375 | CW39: 0.375 | DI39: 0.375 | DU39: 0.375 | EG39: 0.375 | ES39: 0.375 | FE39: 0.375 | FQ39: 0.375 | GC39: 0.375 | GO39: 0.375 | HA39: 0.375 | HG39: =COUNT(AC39:HF39) -> 14 | HY39: =SUM(IFERROR(AC40:HF40-AC39:HF39-AC41:HF41,0)) -> 5.625 | IG39: 0.7083333333
AO40: 0.7916666667 | BA40: 0.7916666667 | BM40: 0.7916666667 | CK40: 0.7916666667 | CW40: 0.8333333333 | DI40: 0.8333333333 | DU40: 0.8333333333 | EG40: 0.8333333333 | ES40: 0.8333333333 | FE40: 0.8333333333 | FQ40: 0.8333333333 | GC40: 0.8333333333 | GO40: 0.8333333333 | HA40: 0.8333333333 | IG40: 0.7291666667
X41: обед | AO41: 01:00:00 | BA41: 01:00:00 | BM41: 01:00:00 | CK41: 01:00:00 | CW41: 01:00:00 | DI41: 01:00:00 | DU41: 01:00:00 | EG41: 01:00:00 | ES41: 01:00:00 | FE41: 01:00:00 | FQ41: 01:00:00 | GC41: 01:00:00 | GO41: 01:30:00 | HA41: 01:30:00 | IG41: 0.7916666667
IG42: 0.75
X43: пр | IG43: 0.7708333333
IG44: 0.625
A45: 5 | F45: Окорочкова О.Т., кассир билетный | X45: 1 | AI45: 0.375 | AU45: 0.375 | BG45: 0.375 | BS45: 0.375 | CE45: 0.375 | CQ45: 0.375 | DC45: 0.375 | DO45: 0.375 | EA45: 0.375 | EM45: 0.375 | EY45: 0.375 | FK45: 0.375 | FW45: 0.375 | GI45: 0.375 | GU45: 0.375 | HG45: =COUNT(AC45:HF45) -> 15 | HY45: =SUM(IFERROR(AC46:HF46-AC45:HF45-AC47:HF47,0)) -> 5.625 | IG45: 0.875
AI46: 0.7916666667 | AU46: 0.7916666667 | BG46: 0.7916666667 | BS46: 0.7916666667 | CE46: 0.7916666667 | CQ46: 0.7916666667 | DC46: 0.7916666667 | DO46: 0.7916666667 | EA46: 0.7916666667 | EM46: 0.7916666667 | EY46: 0.7916666667 | FK46: 0.7916666667 | FW46: 0.7916666667 | GI46: 0.7916666667 | GU46: 0.7916666667 | IG46: 0.5833333333
X47: обед | AI47: 01:00:00 | AU47: 01:00:00 | BG47: 01:00:00 | BS47: 01:00:00 | CE47: 01:00:00 | CQ47: 01:00:00 | DC47: 01:00:00 | DO47: 01:00:00 | EA47: 01:00:00 | EM47: 01:00:00 | EY47: 01:00:00 | FK47: 01:00:00 | FW47: 01:00:00 | GI47: 01:00:00 | GU47: 01:00:00 | IG47: 0.8333333333
IG48: 0.6666666667
X49: пр | IG49: 0.9375
IG50: 0.9583333333
A51: 6 | F51: Пермякова Т.М., контролёр-посадчик аттракциона | X51: 1 | AO51: 0.375 | BA51: 0.375 | BM51: 0.375 | CK51: 0.375 | CW51: 0.375 | DI51: 0.375 | DU51: 0.375 | EG51: 0.375 | ES51: 0.375 | FE51: 0.375 | FQ51: 0.375 | GC51: 0.375 | GO51: 0.375 | HA51: 0.375 | HG51: =COUNT(AC51:HF51) -> 14 | HY51: =SUM(IFERROR(AC52:HF52-AC51:HF51-AC53:HF53,0)) -> 5.625 | IG51: 0.9791666667
AO52: 0.7916666667 | BA52: 0.7916666667 | BM52: 0.7916666667 | CK52: 0.7916666667 | CW52: 0.8333333333 | DI52: 0.8333333333 | DU52: 0.8333333333 | EG52: 0.8333333333 | ES52: 0.8333333333 | FE52: 0.8333333333 | FQ52: 0.8333333333 | GC52: 0.8333333333 | GO52: 0.8333333333 | HA52: 0.8333333333 | IG52: 1
X53: обед | AO53: 01:00:00 | BA53: 01:00:00 | BM53: 01:00:00 | CK53: 01:00:00 | CW53: 01:00:00 | DI53: 01:00:00 | DU53: 01:00:00 | EG53: 01:00:00 | ES53: 01:00:00 | FE53: 01:00:00 | FQ53: 01:00:00 | GC53: 01:00:00 | GO53: 01:30:00 | HA53: 01:30:00
IG54: В
X55: пр | IG55: Б
IG56: К
A57: 7 | F57: Алексеева Р.И., котролёр-посадчик аттракциона | X57: 1 | AI57: 0.375 | AU57: 0.375 | BG57: 0.375 | BS57: 0.375 | CE57: 0.375 | CQ57: 0.375 | DC57: 0.375 | DO57: 0.375 | EA57: 0.375 | EM57: 0.375 | EY57: 0.375 | FK57: 0.375 | FW57: 0.375 | GI57: 0.375 | GU57: 0.375 | HG57: =COUNT(AC57:HF57) -> 15 | HY57: =SUM(IFERROR(AC58:HF58-AC57:HF57-AC59:HF59,0)) -> 5.625 | IG57: О
AI58: 0.7916666667 | AU58: 0.7916666667 | BG58: 0.7916666667 | BS58: 0.7916666667 | CE58: 0.7916666667 | CQ58: 0.7916666667 | DC58: 0.7916666667 | DO58: 0.7916666667 | EA58: 0.7916666667 | EM58: 0.7916666667 | EY58: 0.7916666667 | FK58: 0.7916666667 | FW58: 0.7916666667 | GI58: 0.7916666667 | GU58: 0.7916666667 | IG58: П
X59: обед | AI59: 01:00:00 | AU59: 01:00:00 | BG59: 01:00:00 | BS59: 01:00:00 | CE59: 01:00:00 | CQ59: 01:00:00 | DC59: 01:00:00 | DO59: 01:00:00 | EA59: 01:00:00 | EM59: 01:00:00 | EY59: 01:00:00 | FK59: 01:00:00 | FW59: 01:00:00 | GI59: 01:00:00 | GU59: 01:00:00
IG60: С
X61: пр
A63: 8 | F63: Перминов К.И., дежурный зала | X63: 1 | AC63: В | AI63: 0.375 | AO63: 0.375 | AU63: 0.4166666667 | BA63: В | BG63: 0.375 | BM63: 0.375 | BS63: 0.375 | BY63: В | CE63: В | CK63: В | CQ63: В | CW63: 0.375 | DC63: 0.375 | DI63: 0.375 | DO63: 0.375 | DU63: 0.375 | EA63: 0.4166666667 | EG63: В | EM63: 0.375 | ES63: 0.375 | EY63: 0.375 | FE63: 0.375 | FK63: 0.375 | FQ63: 0.4166666667 | FW63: В | GC63: 0.375 | GI63: 0.375 | GO63: 0.375 | GU63: 0.375 | HA63: 0.375 | HG63: =COUNT(AC63:HF63) -> 23 | HY63: =SUM(IFERROR(AC64:HF64-AC63:HF63-AC65:HF65,0)) -> 5.625
AC64: В | AI64: 0.7916666667 | AO64: 0.7916666667 | AU64: 0.6666666667 | BA64: В | BG64: 0.7916666667 | BM64: 0.7916666667 | BS64: 0.7916666667 | BY64: В | CE64: В | CK64: В | CQ64: В | CW64: 0.7916666667 | DC64: 0.7916666667 | DI64: 0.7916666667 | DO64: 0.7916666667 | DU64: 0.7916666667 | EA64: 0.6666666667 | EG64: В | EM64: 0.7916666667 | ES64: 0.7916666667 | EY64: 0.7916666667 | FE64: 0.7916666667 | FK64: 0.7916666667 | FQ64: 0.6666666667 | FW64: В | GC64: 0.7916666667 | GI64: 0.7916666667 | GO64: 0.7916666667 | GU64: 0.7916666667 | HA64: 0.7916666667
X65: обед | AI65: 04:00:00 | AO65: 04:00:00 | AU65: 01:00:00 | BG65: 04:00:00 | BM65: 04:00:00 | BS65: 04:00:00 | CW65: 04:00:00 | DC65: 04:00:00 | DI65: 04:00:00 | DO65: 04:00:00 | DU65: 04:00:00 | EA65: 01:00:00 | EM65: 04:00:00 | ES65: 04:00:00 | EY65: 04:00:00 | FE65: 04:00:00 | FK65: 04:00:00 | FQ65: 01:00:00 | GC65: 04:00:00 | GI65: 04:00:00 | GO65: 04:00:00 | GU65: 04:00:00 | HA65: 04:00:00
X67: пр
A69: 9 | F69: Перминов К.И., кассир | X69: 0.25 | AI69: 0.375 | AO69: 0.375 | AU69: 0.375 | BG69: 0.375 | BM69: 0.375 | BS69: 0.375 | CW69: 0.375 | DC69: 0.375 | DI69: 0.375 | DO69: 0.375 | DU69: 0.375 | EA69: 0.375 | EM69: 0.375 | ES69: 0.375 | EY69: 0.375 | FE69: 0.375 | FK69: 0.375 | FQ69: 0.375 | GC69: 0.375 | GI69: 0.375 | GO69: 0.375 | GU69: 0.375 | HA69: 0.375 | HG69: =COUNT(AC69:HF69) -> 23 | HY69: =SUM(IFERROR(AC70:HF70-AC69:HF69-AC71:HF71,0)) -> 1.40625
AI70: 0.4166666667 | AO70: 0.4166666667 | AU70: 0.4166666667 | BG70: 0.4166666667 | BM70: 0.4166666667 | BS70: 0.4166666667 | CW70: 0.4166666667 | DC70: 0.4166666667 | DI70: 0.4166666667 | DO70: 0.4166666667 | DU70: 0.4166666667 | EA70: 0.4166666667 | EM70: 0.4166666667 | ES70: 0.4583333333 | EY70: 0.4583333333 | FE70: 0.4583333333 | FK70: 0.4583333333 | FQ70: 0.4583333333 | GC70: 0.4583333333 | GI70: 0.4583333333 | GO70: 0.4583333333 | GU70: 0.4583333333 | HA70: 0.4895833333
X71: обед
X73: пр
A75: 10 | F75: Бутелин Ю.Н., сторож | X75: 1 | AC75: В | AI75: 0.8333333333 | AO75: В | AU75: В | BA75: 0.8333333333 | BG75: В | BM75: В | BS75: 0.8333333333 | BY75: В | CE75: В | CK75: 0.8333333333 | CQ75: В | CW75: В | DC75: 0.8333333333 | DI75: В | DO75: В | DU75: 0.7916666667 | EA75: В | EG75: В | EM75: 0.7916666667 | ES75: В | EY75: В | FE75: 0.7916666667 | FK75: В | FQ75: В | FW75: 0.7916666667 | GC75: В | GI75: В | GO75: 0.7916666667 | GU75: В | HA75: В | HG75: =COUNT(AC75:HF75) -> 10 | HY75: =SUM(IF(ISNUMBER(AC75:HF75),AC76:HF76-AC75:HF75+(AC76:HF76<AC75:HF75),))*24 -> 135
AC76: В | AI76: 0.375 | AO76: В | AU76: В | BA76: 0.375 | BG76: В | BM76: В | BS76: 0.375 | BY76: В | CE76: В | CK76: 0.375 | CQ76: В | CW76: В | DC76: 0.375 | DI76: В | DO76: В | DU76: 0.375 | EA76: В | EG76: В | EM76: 0.375 | ES76: В | EY76: В | FE76: 0.375 | FK76: В | FQ76: В | FW76: 0.375 | GC76: В | GI76: В | GO76: 0.375 | GU76: В | HA76: В
AI77: 13 | BA77: 13 | BS77: 13 | CK77: 13 | DC77: 13 | DU77: 14 | EM77: 14 | FE77: 14 | FW77: 14 | GO77: 14 | HY77: =SUM(AC77:HF77) -> 135
X79: НОЧЬ | AI79: =(MIN(AI76,6/24)-MIN(AI75,6/24)+MAX(AI76,22/24)-MAX(AI75,22/24))*24+(AI76<AI75)*8 -> 8 | BA79: =(MIN(BA76,6/24)-MIN(BA75,6/24)+MAX(BA76,22/24)-MAX(BA75,22/24))*24+(BA76<BA75)*8 -> 8 | BS79: =(MIN(BS76,6/24)-MIN(BS75,6/24)+MAX(BS76,22/24)-MAX(BS75,22/24))*24+(BS76<BS75)*8 -> 8 | CK79: =(MIN(CK76,6/24)-MIN(CK75,6/24)+MAX(CK76,22/24)-MAX(CK75,22/24))*24+(CK76<CK75)*8 -> 8 | DC79: =(MIN(DC76,6/24)-MIN(DC75,6/24)+MAX(DC76,22/24)-MAX(DC75,22/24))*24+(DC76<DC75)*8 -> 8 | DU79: =(MIN(DU76,6/24)-MIN(DU75,6/24)+MAX(DU76,22/24)-MAX(DU75,22/24))*24+(DU76<DU75)*8 -> 8 | EM79: =(MIN(EM76,6/24)-MIN(EM75,6/24)+MAX(EM76,22/24)-MAX(EM75,22/24))*24+(EM76<EM75)*8 -> 8 | FE79: =(MIN(FE76,6/24)-MIN(FE75,6/24)+MAX(FE76,22/24)-MAX(FE75,22/24))*24+(FE76<FE75)*8 -> 8 | FW79: =(MIN(FW76,6/24)-MIN(FW75,6/24)+MAX(FW76,22/24)-MAX(FW75,22/24))*24+(FW76<FW75)*8 -> 8 | GO79: =(MIN(GO76,6/24)-MIN(GO75,6/24)+MAX(GO76,22/24)-MAX(GO75,22/24))*24+(GO76<GO75)*8 -> 8 | HY79: =SUM(AC79:HF79) -> 80
X81: пр | BS81: 9 | HY81: =SUM(AC81:HF81) -> 9
A83: 11 | F83: Бутелин Ю.Н., контролёр-посадчик | X83: 0.25 | AI83: 3 | BA83: 3 | BS83: 3 | CK83: 3 | DC83: 3 | DU83: 3 | EM83: 4 | FE83: 4 | FW83: 4 | GO83: 3.45 | HG83: =COUNT(AC83:HF83) -> 10 | HY83: =SUM(AC83:HF83) -> 33.45
X87: пр | BS87: 3 | HY87: =SUM(AC87:HF87) -> 3
A89: 12 | F89: Медведев А.П., сторож | X89: 1 | AO89: 0.02083333333 | BG89: 0.02083333333 | BY89: 0.02083333333 | CQ89: 0.02083333333 | DI89: 0.02083333333 | EA89: 0.02083333333 | ES89: 0.02083333333 | FK89: 0.0625 | GC89: 0.0625 | GU89: 0.04166666667 | HG89: =COUNT(AC89:HF89) -> 10 | HY89: =SUM(IFERROR(AC90:HF90-AC89:HF89-AC91:HF91,0)) -> 2.8125
AO90: 0.3125 | BG90: 0.3125 | BY90: 0.3125 | CQ90: 0.3125 | DI90: 0.3125 | EA90: 0.3125 | ES90: 0.3125 | FK90: 0.3125 | GC90: 0.3125 | GU90: 0.3125
X91: обед
X93: НОЧЬ | AO93: =(MIN(AO90,6/24)-MIN(AO89,6/24)+MAX(AO90,22/24)-MAX(AO89,22/24))*24+(AO90<AO89)*8 -> 5.5 | BG93: =(MIN(BG90,6/24)-MIN(BG89,6/24)+MAX(BG90,22/24)-MAX(BG89,22/24))*24+(BG90<BG89)*8 -> 5.5 | BY93: =(MIN(BY90,6/24)-MIN(BY89,6/24)+MAX(BY90,22/24)-MAX(BY89,22/24))*24+(BY90<BY89)*8 -> 5.5 | CQ93: =(MIN(CQ90,6/24)-MIN(CQ89,6/24)+MAX(CQ90,22/24)-MAX(CQ89,22/24))*24+(CQ90<CQ89)*8 -> 5.5 | DI93: =(MIN(DI90,6/24)-MIN(DI89,6/24)+MAX(DI90,22/24)-MAX(DI89,22/24))*24+(DI90<DI89)*8 -> 5.5 | EA93: =(MIN(EA90,6/24)-MIN(EA89,6/24)+MAX(EA90,22/24)-MAX(EA89,22/24))*24+(EA90<EA89)*8 -> 5.5 | ES93: =(MIN(ES90,6/24)-MIN(ES89,6/24)+MAX(ES90,22/24)-MAX(ES89,22/24))*24+(ES90<ES89)*8 -> 5.5 | FK93: =(MIN(FK90,6/24)-MIN(FK89,6/24)+MAX(FK90,22/24)-MAX(FK89,22/24))*24+(FK90<FK89)*8 -> 4.5 | GC93: =(MIN(GC90,6/24)-MIN(GC89,6/24)+MAX(GC90,22/24)-MAX(GC89,22/24))*24+(GC90<GC89)*8 -> 4.5 | GU93: =(MIN(GU90,6/24)-MIN(GU89,6/24)+MAX(GU90,22/24)-MAX(GU89,22/24))*24+(GU90<GU89)*8 -> 5 | HY93: =SUM(AC93:HF93) -> 52.5
X95: пр | BY95: 7 | HY95: =SUM(AC95:HF95) -> 7

Sheet К.П. ИЮНЬ 2020
IH1: СЕГОДНЯ | IQ1: на январь 2020 года | IS1: 1
IH2: =TODAY() -> 2020-05-05 | IQ2: на февраль 2020 года | IS2: 2
IH3: =TEXT(HZ2,"дддд") -> суббота | IQ3: на март 2020 года | IS3: 3
IH4: =WEEKNUM(IH2,2)&"-ая неделя" -> 19-ая неделя | IQ4: на апрель 2020 года | IS4: 4
I5: =IF(OR(#REF!<D3,AND(#REF!<D2,#REF!=D3)),$CN$19,IF(OR(#REF!>D3,AND(#REF!>D2,#REF!=D3)),0,DAY(A2))) ->  | IH5: =IF(OR(#REF!<IC3,AND(#REF!<IC2,#REF!=IC3)),$CN$19,IF(OR(#REF!>IC3,AND(#REF!>IC2,#REF!=IC3)),0,DAY(HZ2))) ->  | IQ5: на май 2020 года | IS5: 5
IG6: время | IQ6: на июнь 2020 года | IS6: 6
HA7: 1 | IB7: количество дней месяца | IE7: 30 | IQ7: на июль 2020 года | IS7: 7
HA8: 2 | IB8: месяц | IE8: 6 | IG8: 0 | II8: 136 | IJ8: 17 | IL8: я | IQ8: на август 2020 года | IS8: 8
IB9: год | IE9: =YEAR(A17) -> 2020 | IG9: 0.02083333333 | II9: 152 | IJ9: 19 | IL9: ф | IQ9: на сентябрь 2020 года | IS9: 9
GI10: УТВЕРЖДАЮ | IG10: 0.0625 | II10: 168 | IJ10: 21 | IL10: м | IQ10: на октябрь 2020 года | IS10: 10
IB11: 0бед | IE11: 0.04166666667 | IG11: 0.4166666667 | II11: 175 | IJ11: 22 | IL11: а | IQ11: на ноябрь 2020 года | IS11: 11
GI12: _______________С. А. Сорокина | IG12: 0.4583333333 | II12: 135 | IJ12: 17 | IL12: май | IQ12: на декабрь 2020 года | IS12: 12
GI13: « 10 » февраля 2020г. | GT13: апреля | IG13: 0.125 | II13: 167 | IJ13: 21 | IL13: июнь
IG14: 0.1458333333 | II14: 184 | IJ14: 23 | IL14: июль | IQ14: Слезинский В.Е., управляющий участка | IW14: 1
A15: ГРАФИК | IG15: 0.1666666667 | II15: 168 | IJ15: 21 | IL15: август | IQ15: Медведев А.П., слесарь-ремонтник | IW15: 0.5
A16: УЧЕТА ИСПОЛЬЗОВАНИЯ РАБОЧЕГО ВРЕМЕНИ ОБСЛУЖИВАЮЩЕГО ПЕРСОНАЛА | IG16: 0.1875 | II16: 176 | IJ16: 22 | IQ16: Береговой Г.П., электрик | IW16: 0.25
A17: 2020-06-01 | HY17: июнь | IG17: 0.2083333333 | II17: 176 | IJ17: 22 | IQ17: Воротынцева В.Н., кассир билетный
IG18: 0.2291666667 | II18: 159 | IJ18: 20 | IQ18: Окорочкова О.Т., кассир билетный
A19: № п/п | F19: Фамилия Инициалы | X19: Ставка | AC19: 1 | AI19: 2 | AO19: 3 | AU19: 4 | BA19: 5 | BG19: 6 | BM19: 7 | BS19: 8 | BY19: 9 | CE19: 10 | CK19: 11 | CQ19: 12 | CW19: 13 | DC19: 14 | DI19: 15 | DO19: 16 | DU19: 17 | EA19: 18 | EG19: 19 | EM19: 20 | ES19: 21 | EY19: 22 | FE19: 23 | FK19: 24 | FQ19: 25 | FW19: 26 | GC19: 27 | GI19: 28 | GO19: =IF(29<=$IE$7,29,"-") -> 29 | GU19: =IF(30<=$IE$7,30,"-") -> 30 | HA19: =IF(31<=$IE$7,31,"-") -> - | HG19: ВСЕГО | HZ19: дней по произв. Кал. | IA19: часов по произв. Кал. | ID19: 17 | IG19: 0.25 | II19: 183 | IJ19: 23 | IQ19: Пермякова Т.М., контролёр-посадчик аттракциона
HG20: дней | HY20: часов | ID20: 19 | IG20: 0.2708333333 | IQ20: Алексеева Р.И., котролёр-посадчик аттракциона
A21: 1 | F21: Слезинский В.Е управляющий участка | X21: 1 | AC21: 0.375 | AI21: 0.4166666667 | AO21: В | AU21: 0.375 | BA21: 0.375 | BG21: 0.375 | BM21: 0.375 | BS21: 0.375 | BY21: 0.4166666667 | CE21: В | CK21: 0.375 | CQ21: В | CW21: 0.375 | DC21: 0.375 | DI21: 0.375 | DO21: 0.4166666667 | DU21: В | EA21: 0.375 | EG21: 0.375 | EM21: 0.375 | ES21: 0.375 | EY21: 0.375 | FE21: 0.4166666667 | FK21: В | FQ21: 0.375 | FW21: 0.375 | GC21: 0.375 | GI21: 0.375 | GO21: 0.375 | GU21: 0.4166666667 | HG21: =COUNT(AC21:HF21) -> 25 | HY21: =SUM(IFERROR(AC22:HF22-AC21:HF21-AC23:HF23,0)) -> 6.958333333 | HZ21: =VLOOKUP($HY$17,#REF!,3,TRUE) ->  | IA21: =INDEX(#REF!,MATCH($HY$17,#REF!,0)) ->  | ID21: 21 | IG21: 0.04166666667 | IQ21: Перминов К.И., дежурный зала
AC22: 0.7916666667 | AI22: 0.6666666667 | AO22: В | AU22: 0.7916666667 | BA22: 0.7916666667 | BG22: 0.8333333333 | BM22: 0.8333333333 | BS22: 0.7916666667 | BY22: 0.6666666667 | CE22: В | CK22: 0.7916666667 | CQ22: В | CW22: 0.8333333333 | DC22: 0.8333333333 | DI22: 0.8333333333 | DO22: 0.6666666667 | DU22: В | EA22: 0.8333333333 | EG22: 0.8333333333 | EM22: 0.8333333333 | ES22: 0.8333333333 | EY22: 0.8333333333 | FE22: 0.6666666667 | FK22: В | FQ22: 0.8333333333 | FW22: 0.8333333333 | GC22: 0.8333333333 | GI22: 0.8333333333 | GO22: 0.8333333333 | GU22: 0.6666666667 | ID22: 22 | IG22: 0.3333333333 | IQ22: Перминов К.И., кассир
X23: обед | AC23: 03:00:00 | AI23: 01:00:00 | AU23: 03:00:00 | BA23: 03:00:00 | BG23: 03:00:00 | BM23: 03:00:00 | BS23: 03:00:00 | BY23: 01:00:00 | CK23: 04:00:00 | CW23: 03:00:00 | DC23: 04:00:00 | DI23: 04:00:00 | DO23: 01:00:00 | EA23: 04:00:00 | EG23: 04:00:00 | EM23: 04:00:00 | ES23: 04:00:00 | EY23: 04:00:00 | FE23: 01:00:00 | FQ23: 04:00:00 | FW23: 04:00:00 | GC23: 04:00:00 | GI23: 04:00:00 | GO23: 04:00:00 | GU23: 01:00:00 | ID23: 17 | IQ23: Бутелин Ю.Н., сторож
ID24: 21 | IQ24: Бутелин Ю.Н., контролёр-посадчик
X25: пр | ID25: 23 | IQ25: Медведев А.П., сторож
ID26: 21
A27: 2 | F27: Медведев А.П., слесарь-ремонтник | X27: 1 | AC27: В | AI27: В | AO27: 0.375 | AU27: 0.375 | BA27: 0.375 | BG27: 0.375 | BM27: 0.375 | BS27: В | BY27: В | CE27: 0.375 | CK27: 0.375 | CQ27: В | CW27: 0.375 | DC27: 0.375 | DI27: В | DO27: В | DU27: 0.375 | EA27: 0.375 | EG27: 0.375 | EM27: 0.375 | ES27: 0.375 | EY27: В | FE27: В | FK27: 0.375 | FQ27: 0.375 | FW27: 0.375 | GC27: 0.375 | GI27: 0.375 | GO27: В | GU27: В | HG27: =COUNT(AC27:HF27) -> 19 | HY27: =SUM(IFERROR(AC28:HF28-AC27:HF27-AC29:HF29,0)) -> 6.958333333 | HZ27: =VLOOKUP($HY$17,#REF!,3,TRUE) ->  | IA27: =INDEX(#REF!,MATCH($HY$17,#REF!,0)) ->  | ID27: 22
AC28: В | AI28: В | AO28: 0.8333333333 | AU28: 0.8333333333 | BA28: 0.8333333333 | BG28: 0.8333333333 | BM28: 0.8333333333 | BS28: В | BY28: В | CE28: 0.8333333333 | CK28: 0.8333333333 | CQ28: В | CW28: 0.8333333333 | DC28: 0.8333333333 | DI28: В | DO28: В | DU28: 0.8333333333 | EA28: 0.8333333333 | EG28: 0.8333333333 | EM28: 0.8333333333 | ES28: 0.8333333333 | EY28: В | FE28: В | FK28: 0.8333333333 | FQ28: 0.8333333333 | FW28: 0.8333333333 | GC28: 0.8333333333 | GI28: 0.8333333333 | GO28: В | GU28: В | ID28: 22
X29: обед | AO29: 02:00:00 | AU29: 02:00:00 | BA29: 02:00:00 | BG29: 02:00:00 | BM29: 02:00:00 | CE29: 02:00:00 | CK29: 02:00:00 | CW29: 02:00:00 | DC29: 02:00:00 | DU29: 02:00:00 | EA29: 02:00:00 | EG29: 02:00:00 | EM29: 02:00:00 | ES29: 02:00:00 | FK29: 02:00:00 | FQ29: 03:00:00 | FW29: 03:00:00 | GC29: 03:00:00 | GI29: 03:00:00 | ID29: 20
ID30: 23
X31: пр | IG31: 0.6666666667
IG32: 0.6666666667
A33: 3 | F33: Береговой Г.П., электрик | X33: 1 | AC33: 0.375 | AI33: 0.375 | AO33: 0.375 | AU33: 0.375 | BA33: 0.375 | BG33: В | BM33: В | BS33: 0.375 | BY33: 0.375 | CE33: 0.375 | CK33: 0.375 | CQ33: В | CW33: В | DC33: В | DI33: 0.375 | DO33: 0.375 | DU33: 0.375 | EA33: 0.375 | EG33: 0.375 | EM33: В | ES33: В | EY33: 0.375 | FE33: 0.375 | FK33: 0.375 | FQ33: 0.375 | FW33: 0.375 | GC33: В | GI33: В | GO33: 0.375 | GU33: 0.375 | HG33: =COUNT(AC33:HF33) -> 21 | HY33: =SUM(IFERROR(AC34:HF34-AC33:HF33-AC35:HF35,0)) -> 6.958333333 | HZ33: =VLOOKUP($HY$17,#REF!,3,TRUE) ->  | IA33: =INDEX(#REF!,MATCH($HY$17,#REF!,0)) ->  | IG33: 0.7083333333
AC34: 0.75 | AI34: 0.75 | AO34: 0.75 | AU34: 0.75 | BA34: 0.75 | BG34: В | BM34: В | BS34: 0.75 | BY34: 0.75 | CE34: 0.75 | CK34: 0.7083333333 | CQ34: В | CW34: В | DC34: В | DI34: 0.75 | DO34: 0.75 | DU34: 0.75 | EA34: 0.75 | EG34: 0.75 | EM34: В | ES34: В | EY34: 0.75 | FE34: 0.75 | FK34: 0.75 | FQ34: 0.75 | FW34: 0.75 | GC34: В | GI34: В | GO34: 0.75 | GU34: 0.75 | IG34: 0.4479166667
X35: обед | AC35: 01:00:00 | AI35: 01:00:00 | AO35: 01:00:00 | AU35: 01:00:00 | BA35: 01:00:00 | BS35: 01:00:00 | BY35: 01:00:00 | CE35: 01:00:00 | CK35: 01:00:00 | DI35: 01:00:00 | DO35: 01:00:00 | DU35: 01:00:00 | EA35: 01:00:00 | EG35: 01:00:00 | EY35: 01:00:00 | FE35: 01:00:00 | FK35: 01:00:00 | FQ35: 01:00:00 | FW35: 01:00:00 | GO35: 01:00:00 | GU35: 01:00:00 | IG35: 0.3125
IG36: 0.375
X37: пр | IG37: 0.4895833333
IG38: 0.5416666667
A39: 4 | F39: Воротынцева В.Н., кассир билетный | X39: 1 | AI39: 0.375 | AU39: 0.375 | BG39: 0.3333333333 | BS39: 0.375 | CE39: 0.375 | CQ39: 0.375 | DC39: 0.3333333333 | DO39: 0.375 | EA39: 0.375 | EM39: 0.375 | EY39: 0.375 | FK39: 0.375 | FW39: 0.375 | GI39: 0.375 | GU39: 0.375 | HG39: =COUNT(AC39:HF39) -> 15 | HY39: =SUM(IFERROR(AC40:HF40-AC39:HF39-AC41:HF41,0)) -> 6.958333333 | HZ39: =VLOOKUP($HY$17,#REF!,3,TRUE) ->  | IA39: =INDEX(#REF!,MATCH($HY$17,#REF!,0)) ->  | IG39: 0.7083333333
AI40: 0.875 | AU40: 0.875 | BG40: 0.875 | BS40: 0.875 | CE40: 0.875 | CQ40: 0.875 | DC40: 0.875 | DO40: 0.875 | EA40: 0.875 | EM40: 0.875 | EY40: 0.875 | FK40: 0.875 | FW40: 0.875 | GI40: 0.875 | GU40: 0.875 | IG40: 0.7291666667
X41: обед | AI41: 01:00:00 | AU41: 01:00:00 | BG41: 01:00:00 | BS41: 01:00:00 | CE41: 01:00:00 | CQ41: 01:00:00 | DC41: 01:00:00 | DO41: 01:00:00 | EA41: 01:00:00 | EM41: 01:00:00 | EY41: 01:00:00 | FK41: 01:00:00 | FW41: 01:00:00 | GI41: 01:00:00 | GU41: 01:00:00 | IG41: 0.7916666667
IG42: 0.75
X43: пр | CQ43: =CQ40-CQ39-CQ41 -> 0.4583333333 | HY43: =SUM(AG43:HQ44) -> 11:00:00 | IG43: 0.7708333333
IG44: 0.625
A45: 5 | F45: Окорочкова О.Т., кассир билетный | X45: 1 | AC45: 0.375 | AO45: 0.375 | BA45: 0.375 | BM45: 0.3333333333 | BY45: 0.375 | CK45: 0.375 | CW45: 0.3333333333 | DI45: 0.375 | DU45: 0.375 | EG45: 0.375 | ES45: 0.375 | FE45: 0.375 | FQ45: 0.375 | GC45: 0.375 | GO45: 0.375 | HG45: =COUNT(AC45:HF45) -> 15 | HY45: =SUM(IFERROR(AC46:HF46-AC45:HF45-AC47:HF47,0)) -> 6.958333333 | IG45: 0.875
AC46: 0.875 | AO46: 0.875 | BA46: 0.875 | BM46: 0.875 | BY46: 0.875 | CK46: 0.875 | CW46: 0.875 | DI46: 0.875 | DU46: 0.875 | EG46: 0.875 | ES46: 0.875 | FE46: 0.875 | FQ46: 0.875 | GC46: 0.875 | GO46: 0.875 | IG46: 0.5833333333
X47: обед | AC47: 01:00:00 | AO47: 01:00:00 | BA47: 01:00:00 | BM47: 01:00:00 | BY47: 01:00:00 | CK47: 01:00:00 | CW47: 01:00:00 | DI47: 01:00:00 | DU47: 01:00:00 | EG47: 01:00:00 | ES47: 01:00:00 | FE47: 01:00:00 | FQ47: 01:00:00 | GC47: 01:00:00 | GO47: 01:00:00 | IG47: 0.8333333333
IG48: 0.6666666667
X49: пр | IG49: 0.9375
IG50: 0.9583333333
A51: 6 | F51: Пермякова Т.М., контролёр-посадчик аттракциона | X51: 1 | AI51: 0.375 | AU51: 0.375 | BG51: 0.3333333333 | BS51: 0.375 | CE51: 0.375 | CQ51: 0.375 | DC51: 0.3333333333 | DO51: 0.375 | EA51: 0.375 | EM51: 0.375 | EY51: 0.375 | FK51: 0.375 | FW51: 0.375 | GI51: 0.375 | GU51: 0.375 | HG51: =COUNT(AC51:HF51) -> 15 | HY51: =SUM(IFERROR(AC52:HF52-AC51:HF51-AC53:HF53,0)) -> 6.958333333 | IG51: 0.9791666667
AI52: 0.875 | AU52: 0.875 | BG52: 0.875 | BS52: 0.875 | CE52: 0.875 | CQ52: 0.875 | DC52: 0.875 | DO52: 0.875 | EA52: 0.875 | EM52: 0.875 | EY52: 0.875 | FK52: 0.875 | FW52: 0.875 | GI52: 0.875 | GU52: 0.875 | IG52: 1
X53: обед | AI53: 01:00:00 | AU53: 01:00:00 | BG53: 01:00:00 | BS53: 01:00:00 | CE53: 01:00:00 | CQ53: 01:00:00 | DC53: 01:00:00 | DO53: 01:00:00 | EA53: 01:00:00 | EM53: 01:00:00 | EY53: 01:00:00 | FK53: 01:00:00 | FW53: 01:00:00 | GI53: 01:00:00 | GU53: 01:00:00 | IG53: 0.9166666667
IG54: В
X55: пр | CQ55: =CQ52-CQ51-CQ53 -> 0.4583333333 | IG55: Б
IG56: К
A57: 7 | F57: Алексеева Р.И., котролёр-посадчик аттракциона | X57: 1 | AC57: 0.375 | AO57: 0.375 | BA57: 0.375 | BM57: 0.3333333333 | BY57: 0.375 | CK57: 0.375 | CW57: 0.3333333333 | DI57: 0.375 | DU57: 0.375 | EG57: 0.375 | ES57: 0.375 | FE57: 0.375 | FQ57: 0.375 | GC57: 0.375 | GO57: 0.375 | HG57: =COUNT(AC57:HF57) -> 15 | HY57: =SUM(IFERROR(AC58:HF58-AC57:HF57-AC59:HF59,0)) -> 6.958333333 | IG57: О
AC58: 0.875 | AO58: 0.875 | BA58: 0.875 | BM58: 0.875 | BY58: 0.875 | CK58: 0.875 | CW58: 0.875 | DI58: 0.875 | DU58: 0.875 | EG58: 0.875 | ES58: 0.875 | FE58: 0.875 | FQ58: 0.875 | GC58: 0.875 | GO58: 0.875 | IG58: П
X59: обед | AC59: 01:00:00 | AO59: 01:00:00 | BA59: 01:00:00 | BM59: 01:00:00 | BY59: 01:00:00 | CK59: 01:00:00 | CW59: 01:00:00 | DI59: 01:00:00 | DU59: 01:00:00 | EG59: 01:00:00 | ES59: 01:00:00 | FE59: 01:00:00 | FQ59: 01:00:00 | GC59: 01:00:00 | GO59: 01:00:00
IG60: С
X61: пр
A63: 8 | F63: Перминов К.И., дежурный зала | X63: 1 | AC63: 0.4166666667 | AI63: В | AO63: 0.375 | AU63: 0.375 | BA63: 0.375 | BG63: 0.375 | BM63: 0.375 | BS63: 0.4166666667 | BY63: В | CE63: 0.375 | CK63: 0.4166666667 | CQ63: В | CW63: 0.375 | DC63: 0.375 | DI63: 0.4166666667 | DO63: В | DU63: 0.375 | EA63: 0.375 | EG63: 0.375 | EM63: 0.375 | ES63: 0.375 | EY63: 0.4166666667 | FE63: В | FK63: 0.375 | FQ63: 0.375 | FW63: 0.375 | GC63: 0.375 | GI63: 0.375 | GO63: 0.4166666667 | GU63: В | HG63: =COUNT(AC63:HF63) -> 24 | HY63: =SUM(IFERROR(AC64:HF64-AC63:HF63-AC65:HF65,0)) -> 6.958333333
AC64: 0.6666666667 | AI64: В | AO64: 0.7916666667 | AU64: 0.7916666667 | BA64: 0.7916666667 | BG64: 0.7916666667 | BM64: 0.7916666667 | BS64: 0.6666666667 | BY64: В | CE64: 0.7916666667 | CK64: 0.6666666667 | CQ64: В | CW64: 0.7916666667 | DC64: 0.7916666667 | DI64: 0.6666666667 | DO64: В | DU64: 0.7916666667 | EA64: 0.7916666667 | EG64: 0.7916666667 | EM64: 0.7916666667 | ES64: 0.7916666667 | EY64: 0.6666666667 | FE64: В | FK64: 0.7916666667 | FQ64: 0.7916666667 | FW64: 0.7916666667 | GC64: 0.7916666667 | GI64: 0.7916666667 | GO64: 0.6666666667 | GU64: В
X65: обед | AC65: 01:00:00 | AO65: 02:00:00 | AU65: 02:00:00 | BA65: 02:00:00 | BG65: 02:00:00 | BM65: 02:00:00 | BS65: 01:00:00 | CE65: 02:00:00 | CK65: 01:00:00 | CW65: 02:00:00 | DC65: 02:00:00 | DI65: 01:00:00 | DU65: 02:00:00 | EA65: 02:00:00 | EG65: 02:00:00 | EM65: 03:00:00 | ES65: 03:00:00 | EY65: 01:00:00 | FK65: 03:00:00 | FQ65: 03:00:00 | FW65: 03:00:00 | GC65: 03:00:00 | GI65: 03:00:00 | GO65: 01:00:00
X67: пр
A69: 9 | F69: Перминов К.И., кассир | X69: 0.25 | AC69: 0.375 | AO69: 0.375 | AU69: 0.375 | BA69: 0.375 | BG69: 0.375 | BM69: 0.375 | BS69: 0.375 | CE69: 0.375 | CK69: 0.375 | CQ69: В | CW69: 0.375 | DC69: 0.375 | DI69: 0.375 | DU69: 0.375 | EA69: 0.375 | EG69: 0.375 | EM69: 0.375 | ES69: 0.375 | EY69: 0.375 | FK69: 0.375 | FQ69: 0.375 | FW69: 0.375 | GC69: 0.375 | GI69: 0.375 | GO69: 0.375 | HG69: =COUNT(AC69:HF69) -> 24 | HY69: =SUM(IFERROR(AC70:HF70-AC69:HF69-AC71:HF71,0)) -> 1.739583333
AC70: 0.4583333333 | AO70: 0.4583333333 | AU70: 0.4583333333 | BA70: 0.4583333333 | BG70: 0.4583333333 | BM70: 0.4583333333 | BS70: 0.4583333333 | CE70: 0.4583333333 | CK70: 0.4583333333 | CQ70: В | CW70: 0.4583333333 | DC70: 0.4583333333 | DI70: 0.4583333333 | DU70: 0.4583333333 | EA70: 0.4583333333 | EG70: 0.4583333333 | EM70: 0.4583333333 | ES70: 0.4583333333 | EY70: 0.4166666667 | FK70: 0.4166666667 | FQ70: 0.4166666667 | FW70: 0.4166666667 | GC70: 0.4166666667 | GI70: 0.4166666667 | GO70: 0.4479166667
X71: обед
X73: пр
A75: 10 | F75: Бутелин Ю.Н., сторож | X75: 1 | AC75: 0.7083333333 | AI75: В | AO75: В | AU75: 0.7083333333 | BA75: В | BG75: В | BM75: 0.7083333333 | BS75: В | BY75: В | CE75: 0.6666666667 | CK75: В | CQ75: В | CW75: 0.6666666667 | DC75: В | DI75: В | DO75: 0.6666666667 | DU75: В | EA75: В | EG75: 0.6666666667 | EM75: В | ES75: В | EY75: 0.6666666667 | FE75: В | FK75: В | FQ75: 0.6666666667 | FW75: В | GC75: В | GI75: 0.6666666667 | GO75: В | GU75: В | HG75: =COUNT(AC75:HF75) -> 10 | HY75: =SUM(IF(ISNUMBER(AC75:HF75),AC76:HF76-AC75:HF75+(AC76:HF76<AC75:HF75),))*24 -> 167
AC76: 0.375 | AI76: В | AO76: В | AU76: 0.375 | BA76: В | BG76: В | BM76: 0.375 | BS76: В | BY76: В | CE76: 0.375 | CK76: В | CQ76: В | CW76: 0.375 | DC76: В | DI76: В | DO76: 0.375 | DU76: В | EA76: В | EG76: 0.375 | EM76: В | ES76: В | EY76: 0.375 | FE76: В | FK76: В | FQ76: 0.375 | FW76: В | GC76: В | GI76: 0.375 | GO76: В | GU76: В
HY77: =SUM(AC77:HF77) -> 0
X79: НОЧЬ | AC79: =(MIN(AC76,6/24)-MIN(AC75,6/24)+MAX(AC76,22/24)-MAX(AC75,22/24))*24+(AC76<AC75)*8 -> 8 | AI79: =(MIN(AI76,6/24)-MIN(AI75,6/24)+MAX(AI76,22/24)-MAX(AI75,22/24))*24+(AI76<AI75)*8 -> 0 | AO79: =(MIN(AO76,6/24)-MIN(AO75,6/24)+MAX(AO76,22/24)-MAX(AO75,22/24))*24+(AO76<AO75)*8 -> 0 | AU79: =(MIN(AU76,6/24)-MIN(AU75,6/24)+MAX(AU76,22/24)-MAX(AU75,22/24))*24+(AU76<AU75)*8 -> 8 | BA79: =(MIN(BA76,6/24)-MIN(BA75,6/24)+MAX(BA76,22/24)-MAX(BA75,22/24))*24+(BA76<BA75)*8 -> 0 | BG79: =(MIN(BG76,6/24)-MIN(BG75,6/24)+MAX(BG76,22/24)-MAX(BG75,22/24))*24+(BG76<BG75)*8 -> 0 | BM79: =(MIN(BM76,6/24)-MIN(BM75,6/24)+MAX(BM76,22/24)-MAX(BM75,22/24))*24+(BM76<BM75)*8 -> 8 | BS79: =(MIN(BS76,6/24)-MIN(BS75,6/24)+MAX(BS76,22/24)-MAX(BS75,22/24))*24+(BS76<BS75)*8 -> 0 | BY79: =(MIN(BY76,6/24)-MIN(BY75,6/24)+MAX(BY76,22/24)-MAX(BY75,22/24))*24+(BY76<BY75)*8 -> 0 | CE79: =(MIN(CE76,6/24)-MIN(CE75,6/24)+MAX(CE76,22/24)-MAX(CE75,22/24))*24+(CE76<CE75)*8 -> 8 | CK79: =(MIN(CK76,6/24)-MIN(CK75,6/24)+MAX(CK76,22/24)-MAX(CK75,22/24))*24+(CK76<CK75)*8 -> 0 | CQ79: =(MIN(CQ76,6/24)-MIN(CQ75,6/24)+MAX(CQ76,22/24)-MAX(CQ75,22/24))*24+(CQ76<CQ75)*8 -> 0 | CW79: =(MIN(CW76,6/24)-MIN(CW75,6/24)+MAX(CW76,22/24)-MAX(CW75,22/24))*24+(CW76<CW75)*8 -> 8 | DC79: =(MIN(DC76,6/24)-MIN(DC75,6/24)+MAX(DC76,22/24)-MAX(DC75,22/24))*24+(DC76<DC75)*8 -> 0 | DI79: =(MIN(DI76,6/24)-MIN(DI75,6/24)+MAX(DI76,22/24)-MAX(DI75,22/24))*24+(DI76<DI75)*8 -> 0 | DO79: =(MIN(DO76,6/24)-MIN(DO75,6/24)+MAX(DO76,22/24)-MAX(DO75,22/24))*24+(DO76<DO75)*8 -> 8 | DU79: =(MIN(DU76,6/24)-MIN(DU75,6/24)+MAX(DU76,22/24)-MAX(DU75,22/24))*24+(DU76<DU75)*8 -> 0 | EA79: =(MIN(EA76,6/24)-MIN(EA75,6/24)+MAX(EA76,22/24)-MAX(EA75,22/24))*24+(EA76<EA75)*8 -> 0 | EG79: =(MIN(EG76,6/24)-MIN(EG75,6/24)+MAX(EG76,22/24)-MAX(EG75,22/24))*24+(EG76<EG75)*8 -> 8 | EM79: =(MIN(EM76,6/24)-MIN(EM75,6/24)+MAX(EM76,22/24)-MAX(EM75,22/24))*24+(EM76<EM75)*8 -> 0 | ES79: =(MIN(ES76,6/24)-MIN(ES75,6/24)+MAX(ES76,22/24)-MAX(ES75,22/24))*24+(ES76<ES75)*8 -> 0 | EY79: =(MIN(EY76,6/24)-MIN(EY75,6/24)+MAX(EY76,22/24)-MAX(EY75,22/24))*24+(EY76<EY75)*8 -> 8 | FE79: =(MIN(FE76,6/24)-MIN(FE75,6/24)+MAX(FE76,22/24)-MAX(FE75,22/24))*24+(FE76<FE75)*8 -> 0 | FK79: =(MIN(FK76,6/24)-MIN(FK75,6/24)+MAX(FK76,22/24)-MAX(FK75,22/24))*24+(FK76<FK75)*8 -> 0 | FQ79: =(MIN(FQ76,6/24)-MIN(FQ75,6/24)+MAX(FQ76,22/24)-MAX(FQ75,22/24))*24+(FQ76<FQ75)*8 -> 8 | FW79: =(MIN(FW76,6/24)-MIN(FW75,6/24)+MAX(FW76,22/24)-MAX(FW75,22/24))*24+(FW76<FW75)*8 -> 0 | GC79: =(MIN(GC76,6/24)-MIN(GC75,6/24)+MAX(GC76,22/24)-MAX(GC75,22/24))*24+(GC76<GC75)*8 -> 0 | GI79: =(MIN(GI76,6/24)-MIN(GI75,6/24)+MAX(GI76,22/24)-MAX(GI75,22/24))*24+(GI76<GI75)*8 -> 8 | GO79: =(MIN(GO76,6/24)-MIN(GO75,6/24)+MAX(GO76,22/24)-MAX(GO75,22/24))*24+(GO76<GO75)*8 -> 0 | GU79: =(MIN(GU76,6/24)-MIN(GU75,6/24)+MAX(GU76,22/24)-MAX(GU75,22/24))*24+(GU76<GU75)*8 -> 0 | HY79: =SUM(AC79:HF79) -> 80
X81: пр | HY81: =SUM(AC81:HF81) -> 0
A83: 11 | F83: Бутелин Ю.Н., контролёр-посадчик | X83: 0.25 | AC83: 4 | AU83: 4 | BM83: 4 | CE83: 4 | CW83: 4 | DO83: 4 | EG83: 4 | EY83: 4 | FQ83: 4 | GI83: 5.45 | HG83: =COUNT(AC83:HF83) -> 10 | HY83: =SUM(AC83:HF83) -> 41.45
X87: пр | HY87: =SUM(AC87:HF87) -> 0
A89: 12 | F89: Медведев А.П., сторож | X89: 1 | AC89: В | AI89: 0.9583333333 | AO89: В | AU89: В | BA89: 0.9583333333 | BG89: В | BM89: В | BS89: 0.9583333333 | BY89: В | CE89: В | CK89: 0.9583333333 | CQ89: В | CW89: В | DC89: 0.9583333333 | DI89: В | DO89: В | DU89: 0.9583333333 | EA89: В | EG89: В | EM89: 0.9583333333 | ES89: В | EY89: В | FE89: 0.9791666667 | FK89: В | FQ89: В | FW89: 0.9791666667 | GC89: В | GI89: В | GO89: 0.9791666667 | GU89: В | HG89: =COUNT(AC89:HF89) -> 10 | HY89: =HG89-SUM(AC89:HF89)+SUM(AC90:HF90) -> 3.479166667
AC90: В | AI90: 0.3125 | AO90: В | AU90: В | BA90: 0.3125 | BG90: В | BM90: В | BS90: 0.3125 | BY90: В | CE90: В | CK90: 0.3125 | CQ90: В | CW90: В | DC90: 0.3125 | DI90: В | DO90: В | DU90: 0.3125 | EA90: В | EG90: В | EM90: 0.3125 | ES90: В | EY90: В | FE90: 0.3125 | FK90: В | FQ90: В | FW90: 0.3125 | GC90: В | GI90: В | GO90: 0.3125 | GU90: В
X91: обед | HY91: =HG91-SUM(AC91:HF91)+SUM(AC92:HF92) -> 0
X93: НОЧЬ | AC93: =(MIN(AC90,6/24)-MIN(AC89,6/24)+MAX(AC90,22/24)-MAX(AC89,22/24))*24+(AC90<AC89)*8 -> 0 | AI93: =(MIN(AI90,6/24)-MIN(AI89,6/24)+MAX(AI90,22/24)-MAX(AI89,22/24))*24+(AI90<AI89)*8 -> 7 | AO93: =(MIN(AO90,6/24)-MIN(AO89,6/24)+MAX(AO90,22/24)-MAX(AO89,22/24))*24+(AO90<AO89)*8 -> 0 | AU93: =(MIN(AU90,6/24)-MIN(AU89,6/24)+MAX(AU90,22/24)-MAX(AU89,22/24))*24+(AU90<AU89)*8 -> 0 | BA93: =(MIN(BA90,6/24)-MIN(BA89,6/24)+MAX(BA90,22/24)-MAX(BA89,22/24))*24+(BA90<BA89)*8 -> 7 | BG93: =(MIN(BG90,6/24)-MIN(BG89,6/24)+MAX(BG90,22/24)-MAX(BG89,22/24))*24+(BG90<BG89)*8 -> 0 | BM93: =(MIN(BM90,6/24)-MIN(BM89,6/24)+MAX(BM90,22/24)-MAX(BM89,22/24))*24+(BM90<BM89)*8 -> 0 | BS93: =(MIN(BS90,6/24)-MIN(BS89,6/24)+MAX(BS90,22/24)-MAX(BS89,22/24))*24+(BS90<BS89)*8 -> 7 | BY93: =(MIN(BY90,6/24)-MIN(BY89,6/24)+MAX(BY90,22/24)-MAX(BY89,22/24))*24+(BY90<BY89)*8 -> 0 | CE93: =(MIN(CE90,6/24)-MIN(CE89,6/24)+MAX(CE90,22/24)-MAX(CE89,22/24))*24+(CE90<CE89)*8 -> 0 | CK93: =(MIN(CK90,6/24)-MIN(CK89,6/24)+MAX(CK90,22/24)-MAX(CK89,22/24))*24+(CK90<CK89)*8 -> 7 | CQ93: =(MIN(CQ90,6/24)-MIN(CQ89,6/24)+MAX(CQ90,22/24)-MAX(CQ89,22/24))*24+(CQ90<CQ89)*8 -> 0 | CW93: =(MIN(CW90,6/24)-MIN(CW89,6/24)+MAX(CW90,22/24)-MAX(CW89,22/24))*24+(CW90<CW89)*8 -> 0 | DC93: =(MIN(DC90,6/24)-MIN(DC89,6/24)+MAX(DC90,22/24)-MAX(DC89,22/24))*24+(DC90<DC89)*8 -> 7 | DI93: =(MIN(DI90,6/24)-MIN(DI89,6/24)+MAX(DI90,22/24)-MAX(DI89,22/24))*24+(DI90<DI89)*8 -> 0 | DO93: =(MIN(DO90,6/24)-MIN(DO89,6/24)+MAX(DO90,22/24)-MAX(DO89,22/24))*24+(DO90<DO89)*8 -> 0 | DU93: =(MIN(DU90,6/24)-MIN(DU89,6/24)+MAX(DU90,22/24)-MAX(DU89,22/24))*24+(DU90<DU89)*8 -> 7 | EA93: =(MIN(EA90,6/24)-MIN(EA89,6/24)+MAX(EA90,22/24)-MAX(EA89,22/24))*24+(EA90<EA89)*8 -> 0 | EG93: =(MIN(EG90,6/24)-MIN(EG89,6/24)+MAX(EG90,22/24)-MAX(EG89,22/24))*24+(EG90<EG89)*8 -> 0 | EM93: =(MIN(EM90,6/24)-MIN(EM89,6/24)+MAX(EM90,22/24)-MAX(EM89,22/24))*24+(EM90<EM89)*8 -> 7 | ES93: =(MIN(ES90,6/24)-MIN(ES89,6/24)+MAX(ES90,22/24)-MAX(ES89,22/24))*24+(ES90<ES89)*8 -> 0 | EY93: =(MIN(EY90,6/24)-MIN(EY89,6/24)+MAX(EY90,22/24)-MAX(EY89,22/24))*24+(EY90<EY89)*8 -> 0 | FE93: =(MIN(FE90,6/24)-MIN(FE89,6/24)+MAX(FE90,22/24)-MAX(FE89,22/24))*24+(FE90<FE89)*8 -> 6.5 | FK93: =(MIN(FK90,6/24)-MIN(FK89,6/24)+MAX(FK90,22/24)-MAX(FK89,22/24))*24+(FK90<FK89)*8 -> 0 | FQ93: =(MIN(FQ90,6/24)-MIN(FQ89,6/24)+MAX(FQ90,22/24)-MAX(FQ89,22/24))*24+(FQ90<FQ89)*8 -> 0 | FW93: =(MIN(FW90,6/24)-MIN(FW89,6/24)+MAX(FW90,22/24)-MAX(FW89,22/24))*24+(FW90<FW89)*8 -> 6.5 | GC93: =(MIN(GC90,6/24)-MIN(GC89,6/24)+MAX(GC90,22/24)-MAX(GC89,22/24))*24+(GC90<GC89)*8 -> 0 | GI93: =(MIN(GI90,6/24)-MIN(GI89,6/24)+MAX(GI90,22/24)-MAX(GI89,22/24))*24+(GI90<GI89)*8 -> 0 | GO93: =(MIN(GO90,6/24)-MIN(GO89,6/24)+MAX(GO90,22/24)-MAX(GO89,22/24))*24+(GO90<GO89)*8 -> 6.5 | HY93: =SUM(AC93:HF93) -> 68.5
X95: пр | HY95: =SUM(AC95:HF95) -> 0

Sheet К.П. СПИСОК СОТРУДНИКОВ
A2: С ГРАФИКОМ РАБОТЫ НА _________________ ОЗНАКОМЛЕН(А)
A4: 1 | B4: Слезинский В.Е. | F4: "____"___________2020 | H4: 2020
A5: 2 | B5: Медведев А.П. | F5: "____"___________2020 | H5: 2020
A6: 3 | B6: Береговой Г.П. | F6: "____"___________2020 | H6: 2020
A7: 4 | B7: Воротынцева В.Н. | F7: "____"___________2020 | H7: 2020
A8: 5 | B8: Окорочкова О.Т. | F8: "____"___________2020 | H8: 2020
A9: 6 | B9: Пермякова Т.М. | F9: "____"___________2020 | H9: 2020
A10: 7 | B10: Алексеева Р.И. | F10: "____"___________2020 | H10: 2020
A11: 8 | B11: Перминов К.И. | F11: "____"___________2020 | H11: 2020
A12: 9 | B12: Бутелин Ю.Н. | F12: "____"___________2020 | H12: 2020
A13: 10 | B13: Медведев А.П. | F13: "____"___________2020 | H13: 2020

Sheet И.Б. ИЮНЬ 2020
I5: =IF(OR(#REF!<D3,AND(#REF!<D2,#REF!=D3)),$CN$19,IF(OR(#REF!>D3,AND(#REF!>D2,#REF!=D3)),0,DAY(A2))) -> 
HA7: 1
HA8: 2
GI10: УТВЕРЖДАЮ
GI12: _______________С. А. Сорокина
GI13: « 10 » февраля 2020г. | GT13: апреля
IW14: 1
A15: ГРАФИК | IW15: 0.5
A16: УЧЕТА ИСПОЛЬЗОВАНИЯ РАБОЧЕГО ВРЕМЕНИ ОБСЛУЖИВАЮЩЕГО ПЕРСОНАЛА | IW16: 0.25
A17: 2020-06-01
A19: № п/п | F19: Фамилия Инициалы | X19: Ставка | AC19: 1 | AI19: 2 | AO19: 1900-01-03 | AU19: 4 | BA19: 5 | BG19: 6 | BM19: 7 | BS19: 8 | BY19: 9 | CE19: 10 | CK19: 11 | CQ19: 12 | CW19: 13 | DC19: 14 | DI19: 15 | DO19: 16 | DU19: 17 | EA19: 18 | EG19: 19 | EM19: 20 | ES19: 21 | EY19: 22 | FE19: 23 | FK19: 24 | FQ19: 25 | FW19: 26 | GC19: 27 | GI19: 28 | GO19: =IF($GI$19+1<=DAY(EOMONTH($A$17,0)),GI19+1,"-") -> 29 | GU19: =IF($GI$19+2<=DAY(EOMONTH($A$17,0)),GO19+1,"-") -> 30 | HA19: =IF($GI$19+3<=DAY(EOMONTH($A$17,0)),GU19+1,"-") -> - | HG19: ВСЕГО
HG20: дней | HY20: часов
AC21: =IFERROR($A$17+AC19-1,"-") -> 2020-06-01 | AI21: 2020-06-02 | AO21: 2020-06-03 | AU21: 2020-06-04 | BA21: 2020-06-05 | BG21: 2020-06-06 | BM21: =IFERROR($A$17+BM19-1,"-") -> 2020-06-07 | BS21: 2020-06-08 | BY21: 2020-06-09 | CE21: 2020-06-10 | CK21: 2020-06-11 | CQ21: 2020-06-12 | CW21: =IFERROR($A$17+CW19-1,"-") -> 2020-06-13 | DC21: 2020-06-14 | DI21: 2020-06-15 | DO21: 2020-06-16 | DU21: 2020-06-17 | EA21: 2020-06-18 | EG21: =IFERROR($A$17+EG19-1,"-") -> 2020-06-19 | EM21: 2020-06-20 | ES21: 2020-06-21 | EY21: 2020-06-22 | FE21: 2020-06-23 | FK21: 2020-06-24 | FQ21: =IFERROR($A$17+FQ19-1,"-") -> 2020-06-25 | FW21: 2020-06-26 | GC21: 2020-06-27 | GI21: 2020-06-28 | GO21: 2020-06-29 | GU21: 2020-06-30 | HA21: =IFERROR($A$17+HA19-1,"-") -> -
BV36: здесь должен быть ПН
